fUST/lending_fUST_20251017
["ID","MTS","AMOUNT","RATE_DAILY","PERIOD"]
[391621964,1760707843574,-160.83984091,0.0003266,5]
[391621965,1760707843582,-500.0,0.0003266,5]
[391621966,1760707843592,-505.73528046,0.000327,2]
[391621967,1760707843601,-151.0,0.000328,19]
[391621968,1760707843610,-2142.22789498,0.0003285,2]
[391621969,1760707843620,-413.68744436,0.00032866,2]
[391621970,1760707843629,-500.0,0.00032875,5]
[391621971,1760707843639,-500.0,0.00032875,5]
[391621972,1760707843648,-500.0,0.00032876,5]
[391621973,1760707843657,-500.0,0.00032876,5]
[391621975,1760707843667,-3332.89,0.00032876,5]
[391621977,1760707843676,-500.0,0.00032876,5]
[391621978,1760707843686,-500.0,0.00032876,5]
[391621979,1760707843695,-500.0,0.00032876,5]
[391621980,1760707843704,-500.0,0.00032876,5]
[391621981,1760707843713,-500.0,0.00032876,5]
[391621982,1760707843722,-850.53,0.00032876,2]
[391621983,1760707843738,-500.0,0.00032876,5]
[391621984,1760707843747,-578.95,0.00032876,5]
[391621985,1760707843756,-500.0,0.00032876,5]
[391621986,1760707843766,-557.47,0.00032876,2]
[391621987,1760707843775,-3604.28,0.00032876,5]
[391621988,1760707843784,-213.08943978,0.00032876,5]
[391621995,1760707846849,-500.0,0.00030136,5]
[391621997,1760707846859,-545.41221293,0.00030136,2]
[391621998,1760707846868,-500.0,0.0003041,5]
[391621999,1760707846878,-500.0,0.00030684,5]
[391622000,1760707846887,-490.5207778,0.00030958,5]
[391622010,1760708107028,369.22870451,0.00029041,120]
[391622011,1760708121822,-152.89059503,0.00028493,2]
[391622012,1760708124404,-216.31972833,0.00028493,2]
[391622013,1760708124428,-10.25097538,0.00028593,7]
[391622014,1760708128262,-188.74902462,0.00028593,7]
[391622015,1760708128284,-68.59618815,0.00030135,2]
[391622017,1760708234395,417.15472785,0.00027002,2]
[391622023,1760708627371,5000.0,0.00027002,2]
[391622024,1760708635927,5000.0,0.00027002,2]
[391622025,1760708660978,5000.0,0.00027002,2]
[391622026,1760708662240,-308.9928497,0.00027869,2]
[391622028,1760708684237,5000.0,0.00027002,2]
[391622029,1760708706690,5000.0,0.00027002,2]
[391622031,1760708729536,3329.04731572,0.00027002,2]
[391622034,1760708791222,300.0,0.00027,2]
[391622036,1760708797138,-289.30205532,0.00027869,2]
[391622038,1760708805660,300.0,0.00027,2]
[391622040,1760708819895,300.0,0.00027,2]
[391622041,1760708832622,300.0,0.00027,2]
[391622043,1760708847326,300.0,0.00027,2]
[391622045,1760708855564,5000.0,0.00027002,2]
[391622047,1760708879448,5000.0,0.00027002,2]
[391622049,1760708901951,641.979412,0.00027002,2]
[391622050,1760708901974,4358.020588,0.00027002,2]
[391622052,1760708925184,5000.0,0.00027002,2]
[391622053,1760708949260,217.5,0.0002747,2]
[391622055,1760708950839,-160.0,0.0002747,2]
[391622085,1760709031819,-279.12312885,0.0002747,2]
[391622087,1760709031831,-587.17907952,0.0002747,2]
[391622258,1760709037719,-3157.90288661,0.0002747,2]
[391622260,1760709037729,-207.5569239,0.00028606,2]
[391622262,1760709037738,-636.80651151,0.00029036,2]
[391622264,1760709037747,-426.84646317,0.00029044,4]
[391622266,1760709037757,-1159.151998,0.00029136,2]
[391622268,1760709037766,-379.64302053,0.00030135,25]
[391622270,1760709037775,-400.0,0.00030135,2]
[391622272,1760709037784,-3298.80183871,0.00030136,2]
[391622274,1760709037795,-5417.85548283,0.00030136,2]
[391622276,1760709037806,-4073.65826683,0.00030136,2]
[391622278,1760709037817,-6002.58389742,0.00030136,2]
[391622280,1760709037826,-500.50711057,0.00030136,2]
[391622282,1760709037835,-500.0,0.00030136,5]
[391622284,1760709037844,-500.94300275,0.00030136,2]
[391622286,1760709037854,-540.72675753,0.00030136,5]
[391622288,1760709037863,-500.0,0.00030136,5]
[391622290,1760709037872,-1000.0,0.00030136,2]
[391622292,1760709037882,-500.0,0.00030136,5]
[391622294,1760709037891,-500.0,0.00030136,5]
[391622297,1760709037901,-500.0,0.00030136,5]
[391622300,1760709037910,-2117.63,0.00030136,5]
[391622303,1760709037919,-500.0,0.00030136,5]
[391622305,1760709037931,-500.0,0.00030136,5]
[391622307,1760709037940,-500.0,0.00030136,5]
[391622309,1760709037949,-500.0,0.00030136,5]
[391622311,1760709037958,-500.0,0.00030136,5]
[391622313,1760709037967,-500.0,0.00030136,5]
[391622315,1760709037977,-500.0,0.00030136,5]
[391622317,1760709037986,-500.0,0.00030136,5]
[391622319,1760709037996,-500.0,0.00030136,5]
[391622321,1760709038007,-500.0,0.00030136,5]
[391622333,1760709038116,-500.0,0.00030136,5]
[391622335,1760709038126,-516.97,0.00030136,2]
[391622337,1760709038136,-500.0,0.00030136,5]
[391622339,1760709038145,-500.0,0.00030136,5]
[391622341,1760709038155,-500.0,0.00030136,5]
[391622343,1760709038165,-500.0,0.00030136,5]
[391622345,1760709038176,-500.0,0.00030136,5]
[391622347,1760709038185,-500.0,0.00030136,5]
[391622349,1760709038195,-887.92,0.00030136,5]
[391622351,1760709038205,-500.0,0.00030136,2]
[391622353,1760709038214,-500.0,0.00030136,5]
[391622355,1760709038224,-500.0,0.00030136,5]
[391622357,1760709038234,-500.0,0.00030136,2]
[391622359,1760709038243,-500.0,0.00030136,5]
[391622361,1760709038252,-500.0,0.00030136,5]
[391622363,1760709038262,-2102.5,0.00030136,5]
[391622365,1760709038272,-500.0,0.00030136,5]
[391622367,1760709038281,-500.0,0.00030136,3]
[391622369,1760709038291,-500.0,0.00030136,5]
[391622370,1760709038300,-391.09329701,0.00030136,5]
[391622372,1760709038309,-500.0,0.00030136,5]
[391622374,1760709038318,-500.01486159,0.00030173,2]
[391622376,1760709038328,-313.3181647,0.00030394,2]
[391622378,1760709038337,-500.0,0.00030409,5]
[391622380,1760709038346,-500.0,0.00030409,5]
[391622382,1760709038355,-217.493,0.00030409,26]
[391622384,1760709038365,-500.0,0.0003041,5]
[391622386,1760709038375,-1000.0,0.0003041,2]
[391622388,1760709038384,-500.0,0.0003041,5]
[391622390,1760709038393,-2117.63,0.0003041,5]
[391622392,1760709038403,-500.0,0.0003041,5]
[391622394,1760709038412,-500.0,0.0003041,5]
[391622396,1760709038421,-500.0,0.0003041,5]
[391622398,1760709038434,-500.0,0.0003041,5]
[391622400,1760709038444,-500.0,0.0003041,5]
[391622402,1760709038453,-516.97,0.0003041,2]
[391622404,1760709038463,-500.0,0.0003041,5]
[391622406,1760709038473,-500.0,0.0003041,5]
[391622408,1760709038482,-500.0,0.0003041,5]
[391622410,1760709038491,-500.0,0.0003041,5]
[391622412,1760709038502,-887.92,0.0003041,5]
[391622414,1760709038511,-500.65029612,0.0003041,2]
[391622416,1760709038522,-500.0,0.0003041,5]
[391622418,1760709038532,-500.0,0.0003041,5]
[391622420,1760709038542,-500.0,0.0003041,2]
[391622422,1760709038551,-500.0,0.0003041,5]
[391622424,1760709038560,-500.0,0.0003041,5]
[391622426,1760709038570,-2102.5,0.0003041,5]
[391622428,1760709038583,-500.0,0.0003041,5]
[391622430,1760709038593,-500.0,0.0003041,3]
[391622432,1760709038603,-500.0,0.0003041,5]
[391622434,1760709038613,-500.0,0.00030683,5]
[391622436,1760709038623,-500.0,0.00030683,5]
[391622438,1760709038632,-150.0,0.00030683,2]
[391622440,1760709038642,-500.0,0.00030684,5]
[391622442,1760709038651,-1000.0,0.00030684,2]
[391622444,1760709038663,-500.0,0.00030684,5]
[391622445,1760709038675,-2117.63,0.00030684,5]
[391622447,1760709038685,-500.0,0.00030684,5]
[391622449,1760709038695,-65.83735803,0.00030684,5]
[391622453,1760709038716,-500.0,0.0003041,5]
[391622454,1760709038725,-181.11205145,0.00030684,5]
[391622457,1760709038736,-253.05059052,0.00030684,5]
[391622459,1760709038746,-27.95418989,0.00030684,5]
[391622461,1760709038758,-372.07194618,0.00030684,5]
[391622463,1760709038767,-500.0,0.00030684,5]
[391622465,1760709038777,-500.0,0.00030684,5]
[391622467,1760709038786,-516.97,0.00030684,2]
[391622469,1760709038796,-500.0,0.00030684,5]
[391622471,1760709038807,-500.0,0.00030684,5]
[391622473,1760709038817,-500.0,0.00030684,5]
[391622475,1760709038826,-500.0,0.00030684,5]
[391622477,1760709038835,-63.03350928,0.00030684,5]
[391622675,1760709040654,-3e-08,0.00030684,5]
[391622899,1760709042906,-824.88649069,0.00030684,5]
[391622901,1760709042916,-500.0,0.00030684,5]
[391622903,1760709042928,-500.0,0.00030684,5]
[391622905,1760709042937,-500.0,0.00030684,2]
[391622907,1760709042946,-455.7345619,0.00030684,5]
[391622909,1760709042955,-500.0,0.00030684,5]
[391622910,1760709042964,-2102.5,0.00030684,5]
[391622912,1760709042974,-500.0,0.00030684,5]
[391622914,1760709042984,-500.0,0.00030684,3]
[391622916,1760709042993,-62.55156995,0.00030684,5]
[391622918,1760709043005,-415.0,0.00030684,5]
[391622921,1760709043016,-22.44843005,0.00030684,5]
[391622923,1760709043026,-500.0,0.00030684,5]
[391622925,1760709043037,-500.0,0.00030957,5]
[391622927,1760709043048,-500.0,0.00030957,5]
[391622929,1760709043060,-500.0,0.00030958,5]
[391622931,1760709043072,-913.77230987,0.00030958,2]
[391622934,1760709043083,-500.0,0.00030958,5]
[391622936,1760709043095,-2117.63,0.00030958,5]
[391622938,1760709043105,-500.0,0.00030958,5]
[391622940,1760709043115,-500.0,0.00030958,5]
[391622942,1760709043127,-500.0,0.00030958,5]
[391622944,1760709043138,-500.0,0.00030958,5]
[391622946,1760709043149,-516.97,0.00030958,2]
[391622949,1760709043161,-500.0,0.00030958,5]
[391622951,1760709043172,-500.0,0.00030958,5]
[391622953,1760709043186,-500.0,0.00030958,5]
[391622955,1760709043197,-500.0,0.00030958,5]
[391622957,1760709043208,-887.92,0.00030958,5]
[391622959,1760709043219,-85.82925008,0.00030958,5]
[391622962,1760709043234,-414.17074992,0.00030958,5]
[391622964,1760709043245,-500.0,0.00030958,5]
[391622966,1760709043257,-500.0,0.00030958,2]
[391622968,1760709043268,-500.0,0.00030958,5]
[391622971,1760709043279,-2102.5,0.00030958,5]
[391622973,1760709043290,-500.0,0.00030958,5]
[391622975,1760709043302,-500.0,0.00030958,3]
[391622977,1760709043314,-500.0,0.00030958,5]
[391622979,1760709043324,-500.0,0.00030958,5]
[391622981,1760709043334,-3492.97584033,0.00031212,2]
[391622984,1760709043346,-803.77226077,0.00031212,2]
[391630461,1760709124045,199.42106682,0.000253,2]
[391631461,1760709191218,417.15472785,0.00027002,2]
[391631462,1760709229569,6244.0,0.00029,120]
[391631480,1760709497721,164.4269819,0.00025205,2]
[391631481,1760709498524,189.09102919,0.00025805,2]
[391631482,1760709499107,213.75507647,0.00026405,2]
[391631483,1760709540064,402.69031254,0.00027002,2]
[391631536,1760709756747,8255.0,0.00027,2]
[391631538,1760709915690,314.49684801,0.00026905,2]
[391631564,1760709991087,-207.42065415,0.00027005,2]
[391631565,1760710096093,313.59968822,0.00026059,2]
[391631566,1760710136102,150.0,0.00025205,2]
[391631567,1760710136569,172.5,0.00025805,2]
[391631568,1760710137049,195.0,0.00026405,2]
[391631604,1760710232006,-217.5,0.00027005,2]
[391631606,1760710232016,-1110.47738304,0.00027177,2]
[391631608,1760710232028,-166.29442469,0.00027331,2]
[391631609,1760710232037,-155.31715808,0.00027569,2]
[391631610,1760710232046,-240.0,0.00027605,2]
[391631612,1760710232055,-70.43953377,0.00027664,2]
[391631615,1760710232066,-1129.56046623,0.00027664,2]
[391631617,1760710232074,-14156.8671923,0.00027665,2]
[391631700,1760710237908,-1583.79013717,0.00027665,2]
[391631701,1760710237920,-14118.94993291,0.00027665,2]
[391631702,1760710237929,-1200.0,0.00027665,2]
[391631703,1760710237940,-300.0,0.00027665,2]
[391631704,1760710237949,-300.0,0.00027665,2]
[391631705,1760710237958,-300.0,0.00027665,2]
[391631706,1760710237967,-300.0,0.00027665,2]
[391631707,1760710237975,-300.0,0.00027665,2]
[391631708,1760710237986,-166.29442469,0.00027669,2]
[391631709,1760710237995,-205.3262998,0.00027769,2]
[391631710,1760710238003,-217.493,0.00027846,17]
[391631711,1760710238013,-262.5,0.00028205,2]
[391631713,1760710238022,-285.0,0.00028805,2]
[391631714,1760710238030,-190.481946,0.00028873,60]
[391631715,1760710238040,-307.5,0.00029405,2]
[391631716,1760710238049,-250.0,0.00029666,2]
[391631717,1760710238059,-953.0,0.00029888,2]
[391631718,1760710238068,-420.0,0.00029888,2]
[391631719,1760710238078,-420.0,0.00029888,2]
[391631720,1760710238087,-420.0,0.00029888,2]
[391631721,1760710238096,-420.0,0.00029888,2]
[391631722,1760710238105,-420.0,0.00029888,2]
[391631723,1760710238114,-406.31,0.00029905,2]
[391631724,1760710238128,-179.62875,0.0003,2]
[391631725,1760710238137,-330.0,0.00030005,2]
[391631726,1760710238146,-1680.0,0.00030018,2]
[391631727,1760710238155,-500.0,0.00030136,5]
[391631728,1760710238164,-500.0,0.00030136,5]
[391631729,1760710238174,-500.0,0.00030136,5]
[391631730,1760710238183,-136.72206273,0.00030136,5]
[391631731,1760710238194,-363.27793727,0.00030136,5]
[391631732,1760710238203,-38.01625993,0.00030136,5]
[391631733,1760710238213,-266.9869136,0.00030136,5]
[391631734,1760710238224,-291.300155,0.00030136,5]
[391631735,1760710238235,-1168.38667147,0.00030136,5]
[391631736,1760710238244,-500.0,0.00030136,5]
[391631737,1760710238253,-500.0,0.00030136,5]
[391631738,1760710238262,-500.0,0.00030136,5]
[391631739,1760710238271,-500.0,0.00030136,5]
[391631740,1760710238280,-500.0,0.00030136,2]
[391631741,1760710238289,-500.0,0.00030136,5]
[391631742,1760710238299,-500.0,0.00030136,5]
[391631743,1760710238308,-426.83354033,0.00030136,5]
[391631744,1760710238316,-500.0,0.00030136,5]
[391631745,1760710238326,-500.0,0.00030136,2]
[391631746,1760710238335,-500.0,0.00030136,5]
[391631747,1760710238343,-500.0,0.00030136,5]
[391631748,1760710238352,-500.0,0.00030136,5]
[391631749,1760710238361,-647.37,0.00030136,5]
[391631750,1760710238372,-500.0,0.00030136,3]
[391631751,1760710238381,-735.18,0.00030136,5]
[391631752,1760710238390,-739.94,0.00030136,5]
[391631753,1760710238399,-336.06489719,0.00030136,5]
[391631754,1760710238408,-500.0,0.00030136,5]
[391631755,1760710238417,-500.0,0.00030136,5]
[391631756,1760710238426,-1752.08,0.00030136,5]
[391631757,1760710238434,-500.0,0.00030136,5]
[391631758,1760710238444,-186.56797607,0.00030229,2]
[391631759,1760710238452,-2939.55483355,0.0003023,2]
[391632086,1760710243238,-200.39391134,0.00027135,4]
[391632088,1760710243248,-676.26,0.0003022,10]
[391632090,1760710243256,-74926.54533686,0.0003023,2]
[391632370,1760710246060,-3112.78859128,0.0003023,2]
[391632378,1760710246122,-50515.95744205,0.0003023,2]
[391632547,1760710247742,402.69031254,0.00027002,2]
[391633075,1760710595926,152.0,0.00027002,2]
[391633076,1760710764276,150.0,0.00025205,2]
[391633077,1760710764705,172.5,0.00025805,2]
[391633078,1760710765172,195.0,0.00026405,2]
[391633091,1760710951253,5106.06,0.00025,30]
[391633092,1760710965337,1000.0,0.00026,3]
[391633093,1760711007914,362.70107906,0.00026045,2]
[391633095,1760711138948,402.99162806,0.00026045,2]
[391633096,1760711140896,460.56186064,0.00026045,2]
[391633097,1760711142628,719.62790725,0.00026045,2]
[391633098,1760711158680,402.69031254,0.00027002,2]
[391633100,1760711223515,1784.09,0.00025,30]
[391633138,1760711355776,13935.06256314,0.00026905,2]
[391633139,1760711391782,150.0,0.00025205,2]
[391633140,1760711392785,172.5,0.00025805,2]
[391633141,1760711393612,195.0,0.00026405,2]
[391633320,1760711438221,-217.5,0.00027005,2]
[391633321,1760711438232,-240.0,0.00027605,2]
[391633322,1760711438242,-328.2751569,0.0002808,2]
[391633323,1760711438252,-1284.864653,0.00028186,2]
[391633324,1760711438263,-262.5,0.00028205,2]
[391633325,1760711438277,-285.0,0.00028805,2]
[391633326,1760711438287,-1200.0,0.00028858,2]
[391633327,1760711438296,-9.09619958,0.00028859,2]
[391633328,1760711438309,-206.7841438,0.00028859,2]
[391633329,1760711438319,-337.31303654,0.00028859,2]
[391633330,1760711438329,-402.6418144,0.00028873,30]
[391633331,1760711438339,-300.0,0.00029404,2]
[391633332,1760711438353,-307.5,0.00029405,2]
[391633333,1760711438362,-750.92586534,0.00029771,2]
[391633334,1760711438371,-844.24,0.0003,2]
[391633335,1760711438381,-2952.0,0.0003,5]
[391633336,1760711438390,-330.0,0.00030005,2]
[391633337,1760711438400,-1522.56964051,0.0003013,2]
[391633338,1760711438409,-750.92586535,0.00030135,2]
[391633339,1760711438419,-500.0,0.00030136,5]
[391633340,1760711438428,-500.0,0.00030136,5]
[391633341,1760711438437,-1691.16,0.00030136,5]
[391633342,1760711438447,-500.0,0.00030136,5]
[391633343,1760711438456,-500.0,0.00030136,5]
[391633344,1760711438466,-500.0,0.00030136,5]
[391633345,1760711438475,-500.0,0.00030136,5]
[391633346,1760711438485,-500.0,0.00030136,5]
[391633347,1760711438494,-500.0,0.00030136,5]
[391633348,1760711438503,-620.4,0.00030136,5]
[391633349,1760711438512,-500.0,0.00030136,5]
[391633350,1760711438522,-500.0,0.00030136,2]
[391633351,1760711438531,-500.0,0.00030136,5]
[391633352,1760711438540,-500.0,0.00030136,5]
[391633353,1760711438550,-500.0,0.00030136,2]
[391633354,1760711438559,-500.0,0.00030136,5]
[391633355,1760711438569,-500.0,0.00030136,5]
[391633356,1760711438579,-500.0,0.00030136,5]
[391633357,1760711438589,-500.0,0.00030136,3]
[391633358,1760711438600,-704.55,0.00030136,5]
[391633359,1760711438609,-500.0,0.00030136,5]
[391633360,1760711438618,-709.11,0.00030136,5]
[391633361,1760711438627,-500.0,0.00030136,5]
[391633362,1760711438637,-500.0,0.00030136,5]
[391633363,1760711438646,-545.41221293,0.00030136,2]
[391633364,1760711438655,-1679.08,0.00030136,5]
[391633365,1760711438664,-500.0,0.00030136,5]
[391633366,1760711438675,-168.0,0.00030181,2]
[391633367,1760711438685,-881.91747474,0.0003019,2]
[391633368,1760711438695,-21343.27282723,0.00030193,2]
[391633369,1760711438711,-1575.9,0.00030193,2]
[391633394,1760711670229,332.664582,0.00013699,2]
[391633395,1760711670433,332.664582,0.00020187,2]
[391633396,1760711670661,332.664582,0.00026676,2]
[391633397,1760711722203,-188.89530046,0.00027416,2]
[391633400,1760711861943,159.0,0.00027,4]
[391633401,1760711863291,159.0,0.00027,4]
[391633402,1760712018704,150.0,0.00025205,2]
[391633403,1760712019172,172.5,0.00025805,2]
[391633404,1760712020158,195.0,0.00026405,2]
[391633405,1760712022345,-217.5,0.00027005,2]
[391633406,1760712022369,-92.77168302,0.00027605,2]
[391633407,1760712026750,-147.22831698,0.00027605,2]
[391633408,1760712070002,402.69031254,0.00027,3]
[391633413,1760712263004,289.30205532,0.00027002,2]
[391633415,1760712385664,12000.0,0.00025205,7]
[391633416,1760712405155,-281.1139152,0.00028105,2]
[391633463,1760712632481,-88.09640816,0.00028105,2]
[391633465,1760712632490,-262.5,0.00028205,2]
[391633467,1760712632500,-285.0,0.00028805,2]
[391633469,1760712632510,-428.0,0.0002895,7]
[391633471,1760712632519,-307.5,0.00029405,2]
[391633473,1760712632528,-1895.39038757,0.00029714,2]
[391633475,1760712632540,-66.60961243,0.00029714,2]
[391633477,1760712632549,-168.0,0.00029884,2]
[391633480,1760712632562,-200.0,0.0002989,2]
[391633482,1760712632571,-155.31715807,0.00029982,2]
[391633483,1760712632581,-174.96316327,0.00029982,2]
[391633486,1760712632591,-138.39961826,0.00029984,2]
[391633543,1760712638368,-1061.60038174,0.00029984,2]
[391633545,1760712638379,-300.0,0.00029985,2]
[391633547,1760712638388,-39.61392281,0.00029985,2]
[391633551,1760712638410,-260.38607719,0.00029985,2]
[391633553,1760712638420,-300.0,0.00029985,2]
[391633555,1760712638429,-489.61392281,0.00029987,2]
[391633558,1760712638454,-322.63845999,0.00029987,2]
[391633560,1760712638464,-346.5811585,0.00029987,2]
[391633562,1760712638473,-705.5339798,0.00029993,2]
[391633564,1760712638482,-1015.04642702,0.00029993,2]
[391633566,1760712638491,-330.0,0.00030005,2]
[391633568,1760712638501,-15945.61322275,0.00030032,2]
[391633798,1760712640521,-18834.07250103,0.00030032,2]
[391633800,1760712640532,-2513.30837674,0.00030032,2]
[391633803,1760712640544,-359.99275684,0.00030032,2]
[391633805,1760712640560,-6536.45394584,0.00030032,2]
[391633807,1760712640570,-499.99999999,0.00030082,2]
[391633809,1760712640579,-247.12,0.00030083,3]
[391633811,1760712640588,-741.38,0.00030083,3]
[391633813,1760712640597,-41594.4854301,0.00030083,2]
[391633815,1760712640607,-289.58121106,0.00030083,2]
[391633817,1760712640618,-20746.26328358,0.00030085,2]
[391633819,1760712640627,-166.0,0.00030085,2]
[391633822,1760712640636,-6000.0,0.0003009,4]
[391633824,1760712640645,-1253.69526319,0.00030091,4]
[391634132,1760712643600,-2504.33473681,0.00030091,4]
[391634135,1760712643614,-199.0,0.00030091,7]
[391634137,1760712643623,-239.641274,0.00030093,30]
[391634139,1760712643632,-239.641274,0.00030093,30]
[391634141,1760712643641,-239.641274,0.00030093,30]
[391634143,1760712643652,-239.641274,0.00030093,30]
[391634146,1760712643662,-151.0,0.00030093,30]
[391634148,1760712643670,-151.0,0.00030093,30]
[391634150,1760712643679,-151.0,0.00030093,30]
[391634152,1760712643689,-151.0,0.00030093,30]
[391634154,1760712643699,-151.0,0.00030093,30]
[391634156,1760712643708,-228.315624,0.00030093,30]
[391634158,1760712643716,-151.0,0.00030093,30]
[391634160,1760712643726,-151.0,0.00030093,30]
[391634162,1760712643735,-151.0,0.00030093,30]
[391634164,1760712643744,-209.994761,0.00030093,30]
[391634166,1760712643752,-251.826759,0.00030093,30]
[391634168,1760712643762,-251.826759,0.00030093,30]
[391634170,1760712643770,-251.826759,0.00030093,30]
[391634172,1760712643779,-251.826759,0.00030093,30]
[391634174,1760712643788,-251.826759,0.00030093,30]
[391634176,1760712643797,-251.826759,0.00030093,30]
[391634178,1760712643806,-251.826759,0.00030093,30]
[391634180,1760712643815,-251.826759,0.00030093,30]
[391634182,1760712643829,-151.0,0.00030093,30]
[391634184,1760712643838,-151.0,0.00030093,30]
[391634186,1760712643847,-157.700731,0.00030093,30]
[391634188,1760712643856,-151.0,0.00030093,30]
[391634190,1760712643865,-151.0,0.00030093,30]
[391634192,1760712643874,-5679.30606497,0.00030093,2]
[391634194,1760712643885,-22910.9998,0.00030093,2]
[391634196,1760712643896,-2134.63717337,0.00030093,2]
[391634198,1760712643907,-2867.73834771,0.00030093,2]
[391634511,1760712646904,-7446.00000003,0.00030093,2]
[391634517,1760712646952,150.0,0.00025205,2]
[391634593,1760712647727,172.5,0.00025805,2]
[391634634,1760712648166,195.0,0.00026405,2]
[391634691,1760712648756,-197.82966408,0.00027005,2]
[391635102,1760712653047,308.9928497,0.00027002,2]
[391636908,1760712672429,193.35569099,0.00025,7]
[391639695,1760712709366,974.31992,0.00015744,2]
[391639697,1760712971184,177.0,0.00024384,13]
[391639700,1760713204666,500.0,0.00025205,2]
[391639701,1760713205674,500.0,0.00025205,2]
[391639702,1760713206650,500.0,0.00025205,2]
[391639703,1760713207092,500.0,0.00025205,2]
[391639704,1760713263107,150.0,0.00025205,2]
[391639705,1760713263626,172.5,0.00025805,2]
[391639706,1760713265651,195.0,0.00026405,2]
[391639707,1760713271530,156.80778272,0.00026905,2]
[391639708,1760713312514,156.80778272,0.00026905,2]
[391639742,1760713614106,-200.0,0.00027005,2]
[391639743,1760713614129,-14.78998026,0.00027005,2]
[391639752,1760713734247,500.0,0.00029,120]
[391639753,1760713739804,500.0,0.00029,120]
[391639768,1760713832709,-176.53570899,0.00027005,2]
[391639769,1760713832719,-1000.0,0.00028226,30]
[391639770,1760713832728,-583.0,0.00028336,7]
[391639771,1760713832738,-211.756023,0.00028495,60]
[391639772,1760713832747,-2102.24,0.00028512,2]
[391639773,1760713832757,-168.0,0.00028923,2]
[391639774,1760713832766,-1200.0,0.0002901,2]
[391639775,1760713832775,-231.0,0.00029012,7]
[391639776,1760713832785,-300.0,0.00029044,2]
[391639777,1760713832794,-1200.0,0.00029045,2]
[391639778,1760713832804,-5485.72078343,0.00029046,2]
[391639779,1760713832816,-2783.19839508,0.00029046,2]
[391639780,1760713832825,-367.42677174,0.00029046,7]
[391639820,1760713838714,-3275.57322826,0.00029046,7]
[391639822,1760713838724,-168.0,0.00029185,2]
[391639824,1760713838734,-2198.3317836,0.00029323,2]
[391639826,1760713838744,-3265.66650788,0.00029493,2]
[391639828,1760713838757,-377.33349212,0.00029493,2]
[391639830,1760713838767,-392.4362857,0.00029507,30]
[391639832,1760713838776,-392.4362857,0.00029507,30]
[391639834,1760713838786,-392.4362857,0.00029507,30]
[391639836,1760713838796,-392.4362857,0.00029507,30]
[391639838,1760713838807,-392.4362857,0.00029507,30]
[391639840,1760713838816,-391.2767107,0.00029507,30]
[391639842,1760713838825,-250.0,0.00029666,2]
[391639844,1760713838835,-396.0,0.00029715,2]
[391639846,1760713838847,-396.0,0.00029764,2]
[391639848,1760713838857,-564.42718384,0.00029883,2]
[391639850,1760713838867,-4795.67818167,0.00029913,2]
[391639852,1760713838880,-1092.32181833,0.00029913,2]
[391639855,1760713838891,-307.587,0.00029965,2]
[391639856,1760713838901,-1000.0,0.00029965,2]
[391639859,1760713838911,-235.62699275,0.00029965,2]
[391639861,1760713838921,-166.0,0.00029965,2]
[391639862,1760713838930,-1023.80026841,0.00029965,2]
[391640278,1760713843872,-1650.886769,0.000297,3]